{"text_format":"3","workbook":"xlsx","n_sheets":3,"sheets":["2025年化材院毕业论文机时补贴","Sheet1","Sheet3"],"not_rendered":{"defined_names":2},"read":"whole","date_system":"1900"}

{"sheet":"2025年化材院毕业论文机时补贴","index":0,"n_rows":138,"n_cols":8,"rows_kept":138}
["序号","学院","专业","学生姓名","指导教师姓名","指导学生数量","金额（第1个学生400元机时，后面学生每个200元机时）","涉及仪器"]
[{"$f":"ROW()-1","v":1},"化学与材料学院","材料物理","夏靖杰","包维斋",1,{"$f":"IF(F2>0,F2-1)*200+IF(F2>0,1)*400","v":400},"SEM/XRD/BET/UV-vis/TGA等 "]
[{"$f":"ROW()-1","v":2},"化学与材料学院","材料物理","杨时海","郭璁",4,{"$f":"IF(F3>0,F3-1)*200+IF(F3>0,1)*400","v":1000},"SEM/XRD/BET/UV-vis/TGA等 "]
[3,"化学与材料学院","材料物理","邹林桐","郭璁",null,null,"SEM/XRD/BET/UV-vis/TGA等 "]
[4,"化学与材料学院","材料物理","薛季婕","郭璁",null,null,"SEM/XRD/BET/UV-vis/TGA等 "]
[5,"化学与材料学院","材料物理","桑杰卓玛","郭璁",null,null,"SEM/XRD/BET/UV-vis/TGA等 "]
[6,"化学与材料学院","材料物理","刘牧天","郭腾超",4,1000,"SEM/XRD/BET/UV-vis/TGA等 "]
[7,"化学与材料学院","材料物理","张恒嘉","郭腾超",null,null,"SEM/XRD/BET/UV-vis/TGA等 "]
[8,"化学与材料学院","材料物理","金杰","郭腾超",null,null,"SEM/XRD/BET/UV-vis/TGA等 "]
[9,"化学与材料学院","材料物理","龚煜星","郭腾超",null,null,"SEM/XRD/BET/UV-vis/TGA等 "]
[10,"化学与材料学院","材料物理","杨志","江凡",1,400,"SEM/XRD/BET/UV-vis/TGA等 "]
[11,"化学与材料学院","材料物理","杨苏森","李敬发",5,1200,"SEM/XRD/BET/UV-vis/TGA等 "]
[12,"物理与光电工程学院","应用物理","王柏诚","李敬发",null,null,"SEM/XRD/BET/UV-vis/TGA等 "]
[13,"物理与光电工程学院","应用物理","王雨涵","李敬发",null,null,"SEM/XRD/BET/UV-vis/TGA等 "]
[14,"物理与光电工程学院","应用物理","杜俊杰","李敬发",null,null,"SEM/XRD/BET/UV-vis/TGA等 "]
[15,"物理与光电工程学院","应用物理","邹敬超","李敬发",null,null,"SEM/XRD/BET/UV-vis/TGA等 "]
[16,"化学与材料学院","材料物理","杨文捷","刘斌",3,800,"SEM/XRD/BET/UV-vis/TGA等 "]
[17,"化学与材料学院","材料物理","李毅翀","刘斌",null,null,"SEM/XRD/BET/UV-vis/TGA等 "]
[18,"化学与材料学院","材料物理","周一诺","刘斌",null,null,"SEM/XRD/BET/UV-vis/TGA等 "]
[19,"化学与材料学院","材料物理","张恩豪","刘鹤",3,800,"SEM/XRD/BET/UV-vis/TGA等 "]
[20,"教师教育学院","化学（师范）","任雪","刘鹤",null,null,"SEM/XRD/BET/UV-vis/TGA等 "]
[21,"教师教育学院","化学（师范）","汪义琅","刘鹤",null,null,"SEM/XRD/BET/UV-vis/TGA等 "]
[22,"化学与材料学院","材料物理","刘启昊","刘品",3,800,"SEM/XRD/BET/UV-vis/TGA等 "]
[23,"化学与材料学院","材料物理","孙梦阳","刘品",null,null,"SEM/XRD/BET/UV-vis/TGA等 "]
[24,"化学与材料学院","材料物理","张天赐","刘品",null,null,"SEM/XRD/BET/UV-vis/TGA等 "]
[25,"化学与材料学院","材料物理","陈思宇","缪菊红",4,1000,"SEM/XRD/BET/UV-vis/TGA等 "]
[26,"化学与材料学院","材料物理","沈嘉宇","缪菊红",null,null,"SEM/XRD/BET/UV-vis/TGA等 "]
[27,"化学与材料学院","材料物理","郑英穆","缪菊红",null,null,"SEM/XRD/BET/UV-vis/TGA等 "]
[28,"雷丁学院","应用化学（合作）","马乔楚","缪菊红",null,null,"SEM/XRD/BET/UV-vis/TGA等 "]
[29,"化学与材料学院","材料物理","何楷文","欧昌金",5,1200,"SEM/XRD/BET/UV-vis/TGA等 "]
[30,"化学与材料学院","材料物理","张冬旭","欧昌金",null,null,"SEM/XRD/BET/UV-vis/TGA等 "]
[31,"雷丁学院","应用化学（合作）","涂锦鹏","欧昌金",null,null,"SEM/XRD/BET/UV-vis/TGA等 "]
[32,"雷丁学院","应用化学（合作）","薛铭仁","欧昌金",null,null,"SEM/XRD/BET/UV-vis/TGA等 "]
[33,"教师教育学院","化学（师范）","张扬","欧昌金",null,null,"SEM/XRD/BET/UV-vis/TGA等 "]
[34,"化学与材料学院","材料物理","周瑞","乔曼",1,400,"SEM/XRD/BET/UV-vis/TGA等 "]
[35,"化学与材料学院","材料物理","周杰","邵高峰",2,600,"SEM/XRD/BET/UV-vis/TGA等 "]
[36,"化学与材料学院","材料物理","贺欣睿","邵高峰",null,null,"SEM/XRD/BET/UV-vis/TGA等 "]
[37,"化学与材料学院","材料物理","何宝洲","邵绍峰",2,600,"SEM/XRD/BET/UV-vis/TGA等 "]
[38,"化学与材料学院","材料物理","苗睿","邵绍峰",null,null,"SEM/XRD/BET/UV-vis/TGA等 "]
[39,"化学与材料学院","材料物理","沈彬","王卫",2,600,"SEM/XRD/BET/UV-vis/TGA等 "]
[40,"化学与材料学院","材料物理","陈柏健","王卫",null,null,"SEM/XRD/BET/UV-vis/TGA等 "]
[41,"化学与材料学院","材料物理","胡圣群","韦松",6,1400,"SEM/XRD/BET/UV-vis/TGA等 "]
[42,"化学与材料学院","材料物理","朱鹤然","韦松",null,null,"SEM/XRD/BET/UV-vis/TGA等 "]
[43,"化学与材料学院","材料物理","陈玉兴","韦松",null,null,"SEM/XRD/BET/UV-vis/TGA等 "]
[44,"教师教育学院","物理学(师范)","陆笑驰","韦松",null,null,"SEM/XRD/BET/UV-vis/TGA等 "]
[45,"教师教育学院","物理学(师范)","徐与陈","韦松",null,null,"SEM/XRD/BET/UV-vis/TGA等 "]
[46,"教师教育学院","物理学(师范)","董粲","韦松",null,null,"SEM/XRD/BET/UV-vis/TGA等 "]
[47,"化学与材料学院","材料物理","杨丹宁","吴红艳",3,800,"SEM/XRD/BET/UV-vis/TGA等 "]
[48,"化学与材料学院","材料物理","于露","吴红艳",null,null,"SEM/XRD/BET/UV-vis/TGA等 "]
[49,"化学与材料学院","材料物理","周锦东","吴红艳",null,null,"SEM/XRD/BET/UV-vis/TGA等 "]
[50,"化学与材料学院","材料物理","黄东濠","杨欣烨",1,400,"SEM/XRD/BET/UV-vis/TGA等 "]
[51,"化学与材料学院","材料物理","朱寒阳","于峰",3,800,"SEM/XRD/BET/UV-vis/TGA等 "]
[52,"化学与材料学院","材料物理","王一任","于峰",null,null,"SEM/XRD/BET/UV-vis/TGA等 "]
[53,"雷丁学院","应用化学（合作）","叶雪涵","于峰",null,null,"SEM/XRD/BET/UV-vis/TGA等 "]
[54,"化学与材料学院","材料物理","张秉华","张一洲",1,400,"SEM/XRD/BET/UV-vis/TGA等 "]
[55,"化学与材料学院","材料物理","崔丁宇","朱国银",6,1400,"SEM/XRD/BET/UV-vis/TGA等 "]
[56,"化学与材料学院","材料物理","陈梦翔","朱国银",null,null,"SEM/XRD/BET/UV-vis/TGA等 "]
[57,"化学与材料学院","材料物理","郁天伦","朱国银",null,null,"SEM/XRD/BET/UV-vis/TGA等 "]
[58,"化学与材料学院","材料物理","姜浩杰","朱国银",null,null,"SEM/XRD/BET/UV-vis/TGA等 "]
[59,"雷丁学院","应用化学（合作）","卢严钦鹏","朱国银",null,null,"SEM/XRD/BET/UV-vis/TGA等 "]
[60,"雷丁学院","应用化学（合作）","孙晶鑫","朱国银",null,null,"SEM/XRD/BET/UV-vis/TGA等 "]
[61,"雷丁学院","应用化学（合作）","郭宏宇","赵浩雨",2,600,"SEM/XRD/BET/UV-vis/TGA等 "]
[62,"雷丁学院","应用化学（合作）","程晟展","赵浩雨",null,null,"SEM/XRD/BET/UV-vis/TGA等 "]
[63,"雷丁学院","应用化学（合作）","胡盛杰","朱晓辉",1,400,"SEM/XRD/BET/UV-vis/TGA等 "]
[64,"化学与材料学院","应用化学","杨帅","陈高",1,400,"SEM/XRD/BET/UV-vis/TGA等 "]
[65,"化学与材料学院","应用化学","陆鑫鑫","高凡",4,1000,"SEM/XRD/BET/UV-vis/TGA等 "]
[66,"教师教育学院","化学（师范）","方静秋","高凡",null,null,"SEM/XRD/BET/UV-vis/TGA等 "]
[67,"教师教育学院","化学（师范）","石京灵","高凡",null,null,"SEM/XRD/BET/UV-vis/TGA等 "]
[68,"教师教育学院","化学（师范）","杨晨","高凡",null,null,"SEM/XRD/BET/UV-vis/TGA等 "]
[69,"化学与材料学院","应用化学","宁景怡","郭彦",1,400,"SEM/XRD/BET/UV-vis/TGA等 "]
[70,"化学与材料学院","应用化学","李杰","郭永明",8,1800,"SEM/XRD/BET/UV-vis/TGA等 "]
[71,"化学与材料学院","应用化学","张龙跃","郭永明",null,null,"SEM/XRD/BET/UV-vis/TGA等 "]
[72,"化学与材料学院","应用化学","谈宇","郭永明",null,null,"SEM/XRD/BET/UV-vis/TGA等 "]
[73,"化学与材料学院","应用化学","唐艺婷","郭永明",null,null,"SEM/XRD/BET/UV-vis/TGA等 "]
[74,"雷丁学院","应用化学（合作）","李易瑾","郭永明",null,null,"SEM/XRD/BET/UV-vis/TGA等 "]
[75,"教师教育学院","化学（师范）","姜一涵","郭永明",null,null,"SEM/XRD/BET/UV-vis/TGA等 "]
[76,"教师教育学院","化学（师范）","顾李钰","郭永明",null,null,"SEM/XRD/BET/UV-vis/TGA等 "]
[77,"教师教育学院","化学（师范）","钱佳祺","郭永明",null,null,"SEM/XRD/BET/UV-vis/TGA等 "]
[78,"化学与材料学院","应用化学","刘熠霞","焦岩",7,{"$f":"IF(F79>0,F79-1)*200+IF(F79>0,1)*400","v":1600},"SEM/XRD/BET/UV-vis/TGA等 "]
[79,"雷丁学院","应用化学（合作）","尹思源","焦岩",null,null,"SEM/XRD/BET/UV-vis/TGA等 "]
[80,"雷丁学院","应用化学（合作）","王一鸣","焦岩",null,null,"SEM/XRD/BET/UV-vis/TGA等 "]
[81,"雷丁学院","应用化学（合作）","许豪杰","焦岩",null,null,"SEM/XRD/BET/UV-vis/TGA等 "]
[82,"雷丁学院","应用化学（合作）","陆宇阳","焦岩",null,null,"SEM/XRD/BET/UV-vis/TGA等 "]
[83,"教师教育学院","化学（师范）","王译祥","焦岩",null,null,"SEM/XRD/BET/UV-vis/TGA等 "]
[84,"教师教育学院","化学（师范）","朱正","焦岩",null,null,"SEM/XRD/BET/UV-vis/TGA等 "]
[85,"雷丁学院","应用化学（合作）","张繁","李英",1,400,"SEM/XRD/BET/UV-vis/TGA等 "]
[86,"教师教育学院","化学（师范）","朱家尧","郝楠",2,600,"SEM/XRD/BET/UV-vis/TGA等 "]
[87,"教师教育学院","化学（师范）","李航宇","郝楠",null,null,"SEM/XRD/BET/UV-vis/TGA等 "]
[88,"化学与材料学院","应用化学","韦杰","李龙燕",6,1400,"SEM/XRD/BET/UV-vis/TGA等 "]
[89,"化学与材料学院","应用化学","刘朝勇","李龙燕",null,null,"SEM/XRD/BET/UV-vis/TGA等 "]
[90,"化学与材料学院","应用化学","苏孟堤","李龙燕",null,null,"SEM/XRD/BET/UV-vis/TGA等 "]
[91,"雷丁学院","应用化学（合作）","陆麒文","李龙燕",null,null,"SEM/XRD/BET/UV-vis/TGA等 "]
[92,"雷丁学院","应用化学（合作）","杨扬诗怡","李龙燕",null,null,"SEM/XRD/BET/UV-vis/TGA等 "]
[93,"雷丁学院","应用化学（合作）","张轩硕","李龙燕",null,null,"SEM/XRD/BET/UV-vis/TGA等 "]
[94,"化学与材料学院","应用化学","周冬阳","陆海杰",3,800,"SEM/XRD/BET/UV-vis/TGA等 "]
[95,"化学与材料学院","应用化学","姜欧纹","陆海杰",null,null,"SEM/XRD/BET/UV-vis/TGA等 "]
[96,"化学与材料学院","应用化学","郭新群","陆海杰",null,null,"SEM/XRD/BET/UV-vis/TGA等 "]
[97,"化学与材料学院","应用化学","刘金瑞","彭枫萍",3,800,"SEM/XRD/BET/UV-vis/TGA等 "]
[98,"教师教育学院","化学（师范）","姜淼","彭枫萍",null,null,"SEM/XRD/BET/UV-vis/TGA等 "]
[99,"教师教育学院","化学（师范）","葛子昕","彭枫萍",null,null,"SEM/XRD/BET/UV-vis/TGA等 "]
[100,"化学与材料学院","应用化学","焦昊宇","乔曼",3,800,"SEM/XRD/BET/UV-vis/TGA等 "]
[101,"教师教育学院","化学（师范）","陈宣如","乔曼",null,null,"SEM/XRD/BET/UV-vis/TGA等 "]
[102,"教师教育学院","化学（师范）","张治洁","乔曼",null,null,"SEM/XRD/BET/UV-vis/TGA等 "]
[103,"化学与材料学院","应用化学","叶宇杰","宋明霞",6,1400,"SEM/XRD/BET/UV-vis/TGA等 "]
[104,"雷丁学院","应用化学（合作）","沈宇峰","宋明霞",null,null,"SEM/XRD/BET/UV-vis/TGA等 "]
[105,"雷丁学院","应用化学（合作）","谭诗怡","宋明霞",null,null,"SEM/XRD/BET/UV-vis/TGA等 "]
[106,"雷丁学院","应用化学（合作）","谭泽宇","宋明霞",null,null,"SEM/XRD/BET/UV-vis/TGA等 "]
[107,"教师教育学院","化学（师范）","李俊杰","宋明霞",null,null,"SEM/XRD/BET/UV-vis/TGA等 "]
[108,"教师教育学院","化学（师范）","唐蔚程","宋明霞",null,null,"SEM/XRD/BET/UV-vis/TGA等 "]
[109,"化学与材料学院","应用化学","杜邦宁","孙锦伟",4,1000,"SEM/XRD/BET/UV-vis/TGA等 "]
[110,"化学与材料学院","应用化学","何嘉宇","孙锦伟",null,null,"SEM/XRD/BET/UV-vis/TGA等 "]
[111,"教师教育学院","化学（师范）","孙月","孙锦伟",null,null,"SEM/XRD/BET/UV-vis/TGA等 "]
[112,"教师教育学院","化学（师范）","段禹","孙锦伟",null,null,"SEM/XRD/BET/UV-vis/TGA等 "]
[113,"化学与材料学院","应用化学","王柯","向育斌",5,1200,"SEM/XRD/BET/UV-vis/TGA等 "]
[114,"化学与材料学院","应用化学","李智","向育斌",null,null,"SEM/XRD/BET/UV-vis/TGA等 "]
[{"$f":"ROW()-1","v":115},"化学与材料学院","应用化学","李政谕","向育斌",null,null,"SEM/XRD/BET/UV-vis/TGA等 "]
[116,"教师教育学院","化学（师范）","李阳玉琳","向育斌",null,null,"SEM/XRD/BET/UV-vis/TGA等 "]
[117,"教师教育学院","化学（师范）","吴兆仪","向育斌",null,null,"SEM/XRD/BET/UV-vis/TGA等 "]
[118,"化学与材料学院","应用化学","张思吉","徐静",4,1000,"SEM/XRD/BET/UV-vis/TGA等 "]
[119,"化学与材料学院","应用化学","周晓谈","徐静",null,null,"SEM/XRD/BET/UV-vis/TGA等 "]
[120,"化学与材料学院","应用化学","魏冠男","徐静",null,null,"SEM/XRD/BET/UV-vis/TGA等 "]
[121,"雷丁学院","应用化学（合作）","杨子建","徐静",null,null,"SEM/XRD/BET/UV-vis/TGA等 "]
[122,"化学与材料学院","应用化学","胡长青","张超智",2,600,"SEM/XRD/BET/UV-vis/TGA等 "]
[123,"化学与材料学院","应用化学","黄一怀","张超智",null,null,"SEM/XRD/BET/UV-vis/TGA等 "]
[124,"化学与材料学院","应用化学","刘妍言","赵浩雨",2,600,"SEM/XRD/BET/UV-vis/TGA等 "]
[125,"化学与材料学院","应用化学","张扬帆","赵浩雨",null,null,"SEM/XRD/BET/UV-vis/TGA等 "]
[126,"化学与材料学院","应用化学","王赢振","周永慧",4,1000,"SEM/XRD/BET/UV-vis/TGA等 "]
[127,"化学与材料学院","应用化学","曹蓉","周永慧",null,null,"SEM/XRD/BET/UV-vis/TGA等 "]
[128,"化学与材料学院","应用化学","梁修蕾","周永慧",null,null,"SEM/XRD/BET/UV-vis/TGA等 "]
[129,"化学与材料学院","应用化学","温馨","周永慧",null,null,"SEM/XRD/BET/UV-vis/TGA等 "]
[130,"雷丁学院","应用化学（合作）","杜嘉翌","黄彤",4,1000,"SEM/XRD/BET/UV-vis/TGA等 "]
[131,"雷丁学院","应用化学（合作）","李政奇","黄彤",null,null,"SEM/XRD/BET/UV-vis/TGA等 "]
[132,"雷丁学院","应用化学（合作）","陆心皓","黄彤",null,null,"SEM/XRD/BET/UV-vis/TGA等 "]
[133,"雷丁学院","应用化学（合作）","俞晨斐","黄彤",null,null,"SEM/XRD/BET/UV-vis/TGA等 "]
[134,"教师教育学院","化学（师范）","李明哲","陶涛",1,400,"SEM/XRD/BET/UV-vis/TGA等 "]
[135,"教师教育学院","化学（师范）","刘晗","张凯",2,600,"SEM/XRD/BET/UV-vis/TGA等 "]
[136,"教师教育学院","化学（师范）","邵天赐","张凯",null,null,"SEM/XRD/BET/UV-vis/TGA等 "]
["汇总",{"$nulls":3},"43名教师",{"$f":"SUM(F2:F137)","v":136},{"$f":"SUM(G2:G137)","v":35800}]

{"sheet":"Sheet1","index":1,"n_rows":79,"n_cols":5,"rows_kept":79,"merged":[[0,0,0,4]]}
["学院：化学与材料学院    学生总人数：77"]
["序号","学院","专业","学生姓名","指导教师姓名"]
["1","化学与材料学院","应用化学","王柯","向育斌"]
["2","化学与材料学院","应用化学","王赢振","周永慧"]
["3","化学与材料学院","应用化学","韦杰","李龙燕"]
["4","化学与材料学院","应用化学","宁景怡","郭彦"]
["5","化学与材料学院","应用化学","叶宇杰","宋明霞"]
["6","化学与材料学院","应用化学","刘朝勇","李龙燕"]
["7","化学与材料学院","应用化学","刘金瑞","彭枫萍"]
["8","化学与材料学院","应用化学","刘妍言","赵浩雨"]
["9","化学与材料学院","应用化学","刘熠霞","焦岩"]
["10","化学与材料学院","应用化学","杜邦宁","孙锦伟"]
["11","化学与材料学院","应用化学","何嘉宇","孙锦伟"]
["12","化学与材料学院","应用化学","李杰","郭永明"]
["13","化学与材料学院","应用化学","李智","向育斌"]
["14","化学与材料学院","应用化学","李政谕","向育斌"]
["15","化学与材料学院","应用化学","陆鑫鑫","高凡"]
["16","化学与材料学院","应用化学","苏孟堤","李龙燕"]
["17","化学与材料学院","应用化学","杨帅","陈高"]
["18","化学与材料学院","应用化学","张龙跃","郭永明"]
["19","化学与材料学院","应用化学","张思吉","徐静"]
["20","化学与材料学院","应用化学","张扬帆","赵浩雨"]
["21","化学与材料学院","应用化学","周冬阳","陆海杰"]
["22","化学与材料学院","应用化学","周晓谈","徐静"]
["23","化学与材料学院","应用化学","胡长青","张超智"]
["24","化学与材料学院","应用化学","姜欧纹","陆海杰"]
["25","化学与材料学院","应用化学","谈宇","郭永明"]
["26","化学与材料学院","应用化学","唐艺婷","郭永明"]
["27","化学与材料学院","应用化学","曹蓉","周永慧"]
["28","化学与材料学院","应用化学","黄一怀","张超智"]
["29","化学与材料学院","应用化学","梁修蕾","周永慧"]
["30","化学与材料学院","应用化学","焦昊宇","乔曼"]
["31","化学与材料学院","应用化学","温馨","周永慧"]
["32","化学与材料学院","应用化学","魏冠男","徐静"]
["33","化学与材料学院","应用化学","郭新群","陆海杰"]
["34","化学与材料学院","材料物理","刘启昊","刘品"]
["35","化学与材料学院","材料物理","孙梦阳","刘品"]
["36","化学与材料学院","材料物理","朱寒阳","于峰"]
["37","化学与材料学院","材料物理","陈思宇","缪菊红"]
["38","化学与材料学院","材料物理","何宝洲","邵绍峰"]
["39","化学与材料学院","材料物理","沈彬","王卫"]
["40","化学与材料学院","材料物理","沈嘉宇","缪菊红"]
["41","化学与材料学院","材料物理","杨志","江凡"]
["42","化学与材料学院","材料物理","杨丹宁","吴红艳"]
["43","化学与材料学院","材料物理","杨时海","郭璁"]
["44","化学与材料学院","材料物理","杨苏森","李敬发"]
["45","化学与材料学院","材料物理","杨文捷","刘斌"]
["46","化学与材料学院","材料物理","张恩豪","刘鹤"]
["47","化学与材料学院","材料物理","邹林桐","郭璁"]
["48","化学与材料学院","材料物理","郑英穆","缪菊红"]
["49","化学与材料学院","材料物理","周瑞","乔曼"]
["50","化学与材料学院","材料物理","胡圣群","韦松"]
["51","化学与材料学院","材料物理","崔丁宇","朱国银"]
["52","化学与材料学院","材料物理","薛季婕","郭璁"]
["53","化学与材料学院","材料物理","周杰","邵高峰"]
["54","化学与材料学院","材料物理","于露","吴红艳"]
["55","化学与材料学院","材料物理","王一任","于峰"]
["56","化学与材料学院","材料物理","刘牧天","郭腾超"]
["57","化学与材料学院","材料物理","朱鹤然","韦松"]
["58","化学与材料学院","材料物理","陈柏健","王卫"]
["59","化学与材料学院","材料物理","陈梦翔","朱国银"]
["60","化学与材料学院","材料物理","陈玉兴","韦松"]
["61","化学与材料学院","材料物理","何楷文","欧昌金"]
["62","化学与材料学院","材料物理","李毅翀","刘斌"]
["63","化学与材料学院","材料物理","张秉华","张一洲"]
["64","化学与材料学院","材料物理","张冬旭","欧昌金"]
["65","化学与材料学院","材料物理","张恒嘉","郭腾超"]
["66","化学与材料学院","材料物理","张天赐","刘品"]
["67","化学与材料学院","材料物理","金杰","郭腾超"]
["68","化学与材料学院","材料物理","苗睿","邵绍峰"]
["69","化学与材料学院","材料物理","郁天伦","朱国银"]
["70","化学与材料学院","材料物理","周锦东","吴红艳"]
["71","化学与材料学院","材料物理","周一诺","刘斌"]
["72","化学与材料学院","材料物理","贺欣睿","邵高峰"]
["73","化学与材料学院","材料物理","姜浩杰","朱国银"]
["74","化学与材料学院","材料物理","桑杰卓玛","郭璁"]
["75","化学与材料学院","材料物理","夏靖杰","包维斋"]
["76","化学与材料学院","材料物理","龚煜星","郭腾超"]
["77","化学与材料学院","材料物理","黄东濠","杨欣烨"]

{"sheet":"Sheet3","index":2,"n_rows":0,"n_cols":0,"rows_kept":0}